fUSD/lending_fUSD_20241221
["ID","MTS","AMOUNT","RATE_DAILY","PERIOD"]
[346161688,1734761457687,-1393.09,0.00021772,2]
[346161689,1734761457696,-500.0,0.00021772,2]
[346161690,1734761457706,-564.43,0.00021772,2]
[346161691,1734761457715,-500.0,0.00021772,2]
[346161692,1734761457724,-509.89,0.00021772,2]
[346161693,1734761457734,-532.66,0.00021772,2]
[346161694,1734761457745,-500.0,0.00021772,2]
[346161695,1734761457756,-931.49,0.00021772,2]
[346161696,1734761457769,-672.61,0.00021772,2]
[346161697,1734761457779,-500.0,0.00021772,2]
[346161698,1734761457789,-527.21,0.00021772,2]
[346161699,1734761457800,-500.0,0.00021772,2]
[346161700,1734761457809,-161.62792453,0.00021772,2]
[346161701,1734761457818,-150.0,0.00021776,2]
[346161702,1734761457828,-150.0,0.00021788,2]
[346161703,1734761457838,-500.0,0.00021794,2]
[346161704,1734761457847,-1000.0,0.00021798,2]
[346161705,1734761457858,-200.0,0.000218,7]
[346161706,1734761457867,-1447.52370318,0.000218,2]
[346161707,1734761457878,-1000.0,0.000218,2]
[346161708,1734761457887,-300.0,0.00021808,2]
[346161709,1734761457899,-151.0,0.00021812,2]
[346161710,1734761457908,-150.0,0.00021813,2]
[346161711,1734761457918,-150.0,0.00021822,2]
[346161712,1734761457927,-150.0,0.00021823,2]
[346161713,1734761457937,-150.0,0.00021832,2]
[346161714,1734761457946,-2175.62642441,0.00021833,2]
[346161715,1734761457956,-150.0,0.00021857,2]
[346161716,1734761457966,-150.0,0.0002186,2]
[346161717,1734761457975,-150.0,0.00021861,2]
[346161718,1734761457985,-1265.0,0.00021861,2]
[346161719,1734761457995,-2010.0,0.00021861,2]
[346161720,1734761458004,-151.214,0.00021861,2]
[346161721,1734761458015,-633.0,0.00021861,2]
[346161722,1734761458024,-565.0,0.00021861,2]
[346161723,1734761458034,-1898.0,0.00021861,2]
[346161724,1734761458043,-3769.0,0.00021861,2]
[346161725,1734761458052,-1255.0,0.00021861,2]
[346161726,1734761458062,-925.0,0.00021861,2]
[346161727,1734761458071,-818.0,0.00021861,2]
[346161728,1734761458081,-536.0,0.00021861,2]
[346161729,1734761458090,-3681.0,0.00021861,2]
[346161730,1734761458099,-3886.0,0.00021861,2]
[346161731,1734761458110,-13754.0,0.00021861,2]
[346161732,1734761458120,-150.0,0.00021861,2]
[346161733,1734761458129,-1170.0,0.00021861,2]
[346161734,1734761458138,-1101.0,0.00021861,2]
[346161735,1734761458147,-1452.02851811,0.00021863,2]
[346161736,1734761458156,-150.0,0.00021869,2]
[346161737,1734761458166,-500.0,0.00021871,2]
[346161738,1734761458175,-988.83,0.00021871,2]
[346161739,1734761458185,-150.0,0.0002188,2]
[346161740,1734761458194,-601.35762418,0.00021883,2]
[346161741,1734761458205,-539.42270384,0.00021893,2]
[346161742,1734761458215,-200.0,0.000219,7]
[346161743,1734761458225,-3000.0,0.000219,2]
[346161744,1734761458235,-2175.62642441,0.000219,2]
[346161745,1734761458244,-160.20890888,0.000219,2]
[346161746,1734761458254,-293.7883334,0.000219,2]
[346161747,1734761458264,-1000.0,0.000219,2]
[346161748,1734761458274,-188.78610528,0.000219,2]
[346161749,1734761458284,-150.0,0.00021902,2]
[346161750,1734761458293,-1500.0,0.00021911,2]
[346161751,1734761458303,-999.0,0.00021916,2]
[346161752,1734761458312,-412.22356192,0.00021917,2]
[346161753,1734761458322,-500.0,0.00021917,2]
[346161754,1734761458331,-525.1909994,0.00021917,2]
[346161755,1734761458341,-3631.66,0.00021917,2]
[346161756,1734761458350,-3631.66,0.00021917,2]
[346161757,1734761458365,-819.06,0.00021917,2]
[346161758,1734761458375,-819.06,0.00021917,2]
[346161759,1734761458385,-1186.79125657,0.0002193,2]
[346161760,1734761458395,-200.0,0.0002193,2]
[346161761,1734761458404,-200.0,0.0002193,2]
[346161762,1734761458415,-2000.0,0.0002193,2]
[346161763,1734761458424,-200.0,0.0002193,2]
[346161764,1734761458434,-1145.87,0.00021942,2]
[346161765,1734761458443,-1256.91,0.00021942,2]
[346161766,1734761458454,-500.0,0.00021942,2]
[346161767,1734761458463,-968.0,0.00021942,2]
[346161768,1734761458473,-2234.17,0.00021942,2]
[346161769,1734761458484,-1574.94,0.00021942,2]
[346161770,1734761458494,-500.0,0.00021942,2]
[346161771,1734761458505,-500.0,0.00021942,2]
[346161772,1734761458517,-2288.39,0.00021942,2]
[346161773,1734761458530,-1746.39,0.00021942,2]
[346161774,1734761458540,-2789.8,0.00021942,2]
[346161775,1734761458550,-1636.21,0.00021942,2]
[346161776,1734761458634,-2228.08,0.00021942,2]
[346161777,1734761458643,-1924.31,0.00021942,2]
[346161778,1734761458654,-3526.92,0.00021942,2]
[346161779,1734761458663,-1326.26,0.00021942,2]
[346161780,1734761458672,-500.0,0.00021942,2]
[346161781,1734761458681,-1983.1,0.00021942,2]
[346161782,1734761458690,-1390.75,0.00021942,2]
[346161783,1734761458700,-11916.67,0.00021942,2]
[346161784,1734761458709,-500.0,0.00021942,2]
[346161785,1734761458719,-500.0,0.00021942,2]
[346161786,1734761458728,-1291.37,0.00021942,2]
[346161787,1734761458738,-500.0,0.00021942,2]
[346161788,1734761458747,-1148.35,0.00021942,2]
[346161789,1734761458756,-1080.46,0.00021942,2]
[346161790,1734761458767,-1279.53,0.00021942,2]
[346161791,1734761458777,-1264.91,0.00021942,2]
[346161792,1734761458786,-819.06,0.00021942,2]
[346161793,1734761458796,-500.0,0.00021942,2]
[346161794,1734761458805,-1605.0,0.00021942,2]
[346161795,1734761458815,-1505679.78899409,0.00021942,3]
[346161796,1734761458824,-8510.95396762,0.00021942,3]
[346161797,1734761458833,-786.34,0.00021943,2]
[346161798,1734761458842,-786.34,0.00021943,2]
[346161799,1734761458851,-786.34,0.00021943,2]
[346161800,1734761458860,-786.34,0.00021943,2]
[346161801,1734761458869,-786.34,0.00021943,2]
[346161802,1734761458878,-786.34,0.00021943,2]
[346161803,1734761458887,-786.34,0.00021943,2]
[346161804,1734761458896,-786.34,0.00021943,2]
[346161805,1734761458905,-786.34,0.00021943,2]
[346161806,1734761458915,-786.34,0.00021943,2]
[346161807,1734761458924,-509.94450405,0.00021943,2]
[346161808,1734761458933,-500.0,0.00021943,2]
[346161809,1734761458943,-500.0,0.00021943,2]
[346161810,1734761458951,-500.0,0.00021943,2]
[346161811,1734761458961,-500.0,0.00021943,2]
[346161812,1734761458971,-500.0,0.00021943,2]
[346161813,1734761458981,-500.0,0.00021943,2]
[346161814,1734761458990,-500.0,0.00021943,2]
[346161815,1734761458999,-500.0,0.00021943,2]
[346161816,1734761459010,-500.0,0.00021943,2]
[346161817,1734761459020,-500.0,0.00021943,2]
[346161818,1734761459029,-932.23,0.00021943,2]
[346161819,1734761459038,-500.0,0.00021943,2]
[346161820,1734761459048,-500.0,0.00021943,2]
[346161821,1734761459057,-500.0,0.00021943,2]
[346161822,1734761459066,-500.0,0.00021943,2]
[346161823,1734761459075,-500.0,0.00021943,2]
[346161824,1734761459085,-500.0,0.00021943,2]
[346161825,1734761459094,-500.0,0.00021943,2]
[346161826,1734761459103,-500.0,0.00021943,2]
[346161827,1734761459113,-500.0,0.00021943,2]
[346161828,1734761459124,-500.0,0.00021943,2]
[346161829,1734761459134,-861.38,0.00021943,2]
[346161830,1734761459143,-500.0,0.00021943,2]
[346161831,1734761459152,-500.0,0.00021943,2]
[346161832,1734761459162,-500.0,0.00021943,2]
[346161833,1734761459171,-702.7,0.00021943,2]
[346161834,1734761459180,-500.0,0.00021943,2]
[346161835,1734761459189,-890.45,0.00021943,2]
[346161836,1734761459199,-500.0,0.00021943,2]
[346161837,1734761459209,-500.0,0.00021943,2]
[346161838,1734761459223,-609.75,0.00021943,2]
[346161839,1734761459232,-500.0,0.00021943,2]
[346161840,1734761459242,-645.33,0.00021943,2]
[346161841,1734761459251,-561.04,0.00021943,2]
[346161842,1734761459260,-713.87,0.00021943,2]
[346161843,1734761459270,-500.0,0.00021943,2]
[346161844,1734761459279,-500.0,0.00021943,2]
[346161845,1734761459288,-500.0,0.00021943,2]
[346161846,1734761459297,-500.0,0.00021943,2]
[346161847,1734761459306,-500.0,0.00021943,2]
[346161848,1734761459315,-500.0,0.00021943,2]
[346161849,1734761459324,-268.37999463,0.00021943,2]
[346161850,1734761459334,-500.0,0.00021943,2]
[346161851,1734761459343,-500.0,0.00021943,2]
[346161852,1734761459352,-500.0,0.00021943,2]
[346161853,1734761459362,-500.0,0.00021943,2]
[346161854,1734761459371,-500.0,0.00021943,2]
[346161855,1734761459380,-500.0,0.00021943,2]
[346161856,1734761459389,-690.92,0.00021943,2]
[346161857,1734761459398,-500.0,0.00021943,2]
[346161858,1734761459408,-500.0,0.00021943,2]
[346161859,1734761459417,-500.0,0.00021943,2]
[346161860,1734761459427,-500.0,0.00021943,2]
[346161861,1734761459437,-500.0,0.00021943,2]
[346161862,1734761459446,-500.0,0.00021943,2]
[346161863,1734761459455,-500.0,0.00021943,2]
[346161864,1734761459466,-500.0,0.00021943,2]
[346161865,1734761459477,-500.0,0.00021943,2]
[346161866,1734761459487,-500.0,0.00021943,2]
[346161867,1734761459496,-500.0,0.00021943,2]
[346161868,1734761459506,-500.0,0.00021943,2]
[346161869,1734761459519,-839.82,0.00021943,2]
[346161870,1734761459528,-500.0,0.00021943,2]
[346161871,1734761459538,-500.0,0.00021943,2]
[346161872,1734761459547,-152.502649,0.00021943,2]
[346161873,1734761459556,-500.0,0.00021943,2]
[346161874,1734761459566,-1381.428704,0.00021943,2]
[346161875,1734761459575,-500.0,0.00021943,2]
[346161876,1734761459585,-829.42,0.00021943,2]
[346161877,1734761459596,-500.0,0.00021943,2]
[346161878,1734761459605,-846.7,0.00021943,2]
[346161879,1734761459614,-500.0,0.00021943,2]
[346161880,1734761459624,-500.0,0.00021943,2]
[346161881,1734761459633,-500.0,0.00021943,2]
[346161882,1734761459642,-500.0,0.00021943,2]
[346161883,1734761459651,-500.0,0.00021943,2]
[346161884,1734761459660,-2009.502643,0.00021943,2]
[346161885,1734761459669,-500.0,0.00021943,2]
[346161886,1734761459678,-500.0,0.00021943,2]
[346161887,1734761459687,-500.0,0.00021943,2]
[346161888,1734761459697,-500.0,0.00021943,2]
[346161889,1734761459706,-500.0,0.00021943,2]
[346161890,1734761459715,-634.47,0.00021943,2]
[346161891,1734761459724,-500.0,0.00021943,2]
[346161892,1734761459733,-545.57,0.00021943,2]
[346161893,1734761459743,-500.0,0.00021943,2]
[346161894,1734761459752,-500.0,0.00021943,2]
[346161895,1734761459761,-500.0,0.00021943,2]
[346161896,1734761459770,-500.0,0.00021943,2]
[346161897,1734761459779,-500.0,0.00021943,2]
[346161898,1734761459789,-622.97,0.00021943,2]
[346161899,1734761459804,-157.253544,0.00021943,2]
[346161900,1734761459814,-500.0,0.00021943,2]
[346161901,1734761459824,-578.09,0.00021943,2]
[346161902,1734761459834,-500.0,0.00021943,2]
[346161903,1734761459845,-500.0,0.00021943,2]
[346161904,1734761459855,-506.3408899,0.00021943,2]
[346161905,1734761459865,-500.0,0.00021943,2]
[346161906,1734761459875,-606.78,0.00021943,2]
[346161907,1734761459884,-503.57482118,0.00021943,2]
[346161908,1734761459894,-500.0,0.00021943,2]
[346161909,1734761459905,-500.0,0.00021943,2]
[346161910,1734761459916,-500.0,0.00021943,2]
[346161911,1734761459926,-500.0,0.00021943,2]
[346161912,1734761459935,-500.0,0.00021943,2]
[346161913,1734761459945,-1331.01,0.00021943,2]
[346161914,1734761459956,-157.265424,0.00021943,2]
[346161915,1734761459965,-500.0,0.00021943,2]
[346161916,1734761459975,-500.0,0.00021943,2]
[346161917,1734761459984,-500.0,0.00021943,2]
[346161918,1734761459994,-1319.1,0.00021943,2]
[346161919,1734761460004,-500.0,0.00021943,2]
[346161920,1734761460015,-500.0,0.00021943,2]
[346161921,1734761460024,-756.99,0.00021943,2]
[346161922,1734761460034,-733.14,0.00021943,2]
[346161923,1734761460043,-500.0,0.00021943,2]
[346161924,1734761460053,-500.0,0.00021943,2]
[346161925,1734761460063,-500.0,0.00021943,2]
[346161926,1734761460072,-500.0,0.00021943,2]
[346161927,1734761460082,-867.97,0.00021943,2]
[346161928,1734761460092,-764.85,0.00021943,2]
[346161929,1734761460102,-500.0,0.00021943,2]
[346161930,1734761460112,-639.07,0.00021943,2]
[346161931,1734761460121,-500.0,0.00021943,2]
[346161932,1734761460131,-500.0,0.00021943,2]
[346161933,1734761460141,-500.0,0.00021943,2]
[346161934,1734761460151,-500.0,0.00021943,2]
[346161935,1734761460161,-549.04,0.00021943,2]
[346161936,1734761460171,-500.0,0.00021943,2]
[346161937,1734761460180,-821.73,0.00021943,2]
[346161938,1734761460190,-510.63045206,0.00021943,2]
[346161939,1734761460201,-500.0,0.00021943,2]
[346161940,1734761460212,-500.35,0.00021943,2]
[346161941,1734761460222,-500.0,0.00021943,2]
[346161942,1734761460233,-500.0,0.00021943,2]
[346161943,1734761460243,-500.0,0.00021943,2]
[346161944,1734761460254,-734.87,0.00021943,2]
[346161945,1734761460265,-690.43,0.00021943,2]
[346161946,1734761460275,-816.14,0.00021943,2]
[346161947,1734761460284,-500.0,0.00021943,2]
[346161948,1734761460294,-500.0,0.00021943,2]
[346161949,1734761460303,-500.0,0.00021943,2]
[346161950,1734761460311,-500.0,0.00021943,2]
[346161951,1734761460320,-500.0,0.00021943,2]
[346161952,1734761460330,-500.0,0.00021943,2]
[346161953,1734761460340,-607.66,0.00021943,2]
[346161954,1734761460352,-528.77,0.00021943,2]
[346161955,1734761460361,-500.0,0.00021943,2]
[346161956,1734761460371,-500.0,0.00021943,2]
[346161957,1734761460381,-500.0,0.00021943,2]
[346161958,1734761460390,-500.0,0.00021943,2]
[346161959,1734761460399,-500.0,0.00021943,2]
[346161960,1734761460409,-500.0,0.00021943,2]
[346161961,1734761460419,-500.0,0.00021943,2]
[346161962,1734761460428,-500.0,0.00021943,2]
[346161963,1734761460437,-788.32,0.00021943,2]
[346161964,1734761460447,-6908.58,0.00021943,2]
[346161965,1734761460456,-500.0,0.00021943,2]
[346161966,1734761460465,-500.0,0.00021943,2]
[346161967,1734761460475,-500.0,0.00021943,2]
[346161968,1734761460485,-706.12,0.00021943,2]
[346161969,1734761460495,-500.0,0.00021943,2]
[346161970,1734761460504,-500.0,0.00021943,2]
[346161971,1734761460516,-1423.68,0.00021943,2]
[346161972,1734761460526,-500.0,0.00021943,2]
[346161973,1734761460536,-518.38717196,0.00021943,2]
[346161974,1734761460545,-266.75781905,0.00021943,2]
[346161975,1734761460555,-553.72,0.00021943,2]
[346161976,1734761460565,-500.0,0.00021943,2]
[346161977,1734761460576,-674.15,0.00021943,2]
[346161978,1734761460585,-603.75,0.00021943,2]
[346161979,1734761460597,-500.0,0.00021943,2]
[346161980,1734761460606,-657.69,0.00021943,2]
[346161981,1734761460615,-775.87,0.00021943,2]
[346161982,1734761460625,-500.0,0.00021943,2]
[346161983,1734761460635,-535.35,0.00021943,2]
[346161984,1734761460645,-500.0,0.00021943,2]
[346161985,1734761460654,-1691.53,0.00021943,2]
[346161986,1734761460663,-500.0,0.00021943,2]
[346161987,1734761460673,-500.0,0.00021943,2]
[346161988,1734761460682,-500.0,0.00021943,2]
[346161989,1734761460692,-500.0,0.00021943,2]
[346161990,1734761460701,-786.37,0.00021943,2]
[346161991,1734761460711,-1366.94,0.00021943,2]
[346161992,1734761460720,-594.73,0.00021943,2]
[346161993,1734761460730,-509.37743902,0.00021943,2]
[346161994,1734761460739,-500.0,0.00021943,2]
[346161995,1734761460748,-500.0,0.00021943,2]
[346161996,1734761460763,-500.0,0.00021943,2]
[346161997,1734761460776,-500.0,0.00021943,2]
[346161998,1734761460785,-1906.64,0.00021943,2]
[346161999,1734761460795,-681.18,0.00021943,2]
[346162000,1734761460804,-1321.28,0.00021943,2]
[346162001,1734761460814,-500.0,0.00021943,2]
[346162002,1734761460824,-500.0,0.00021943,2]
[346162003,1734761460833,-500.0,0.00021943,2]
[346162004,1734761460843,-1224.16,0.00021943,2]
[346162005,1734761460852,-628.68,0.00021943,2]
[346162006,1734761460861,-507.14677871,0.00021943,2]
[346162007,1734761460870,-500.0,0.00021943,2]
[346162008,1734761460880,-500.0,0.00021943,2]
[346162009,1734761460889,-763.39,0.00021943,2]
[346162010,1734761460899,-650.6,0.00021943,2]
[346162011,1734761460909,-975.99,0.00021943,2]
[346162012,1734761460919,-500.0,0.00021943,2]
[346162013,1734761460929,-2388.97,0.00021943,2]
[346162014,1734761460938,-735.82,0.00021943,2]
[346162015,1734761460948,-1003.7,0.00021943,2]
[346162016,1734761460958,-594.82266358,0.00021943,2]
[346162017,1734761460967,-2512.38,0.00021943,2]
[346162018,1734761460977,-820.23,0.00021943,2]
[346162019,1734761460988,-755.26,0.00021943,2]
[346162020,1734761460999,-500.0,0.00021943,2]
[346162021,1734761461009,-500.0,0.00021943,2]
[346162022,1734761461020,-702.91,0.00021943,2]
[346162023,1734761461030,-500.0,0.00021943,2]
[346162024,1734761461040,-1277.0,0.00021943,2]
[346162025,1734761461050,-610.82,0.00021943,2]
[346162026,1734761461060,-500.0,0.00021943,2]
[346162027,1734761461071,-1375.01,0.00021943,2]
[346162028,1734761461081,-338.90798856,0.00021943,2]
[346162029,1734761461091,-500.0,0.00021943,2]
[346162030,1734761461101,-902.22,0.00021943,2]
[346162031,1734761461111,-500.0,0.00021943,2]
[346162032,1734761461121,-1009.89,0.00021943,2]
[346162033,1734761461131,-500.0,0.00021943,2]
[346162034,1734761461140,-500.0,0.00021943,2]
[346162035,1734761461150,-512.61726881,0.00021943,2]
[346162036,1734761461159,-500.0,0.00021943,2]
[346162037,1734761461169,-553.49,0.00021943,2]
[346162038,1734761461180,-500.0,0.00021943,2]
[346162039,1734761461190,-153.55575257,0.00021943,2]
[346162040,1734761461201,-928.1,0.00021943,2]
[346162041,1734761461211,-500.0,0.00021943,2]
[346162042,1734761461221,-1302.53,0.00021943,2]
[346162043,1734761461230,-500.0,0.00021943,2]
[346162044,1734761461240,-504.19,0.00021943,2]
[346162045,1734761461250,-9631.81,0.00021943,2]
[346162046,1734761461262,-2063.0,0.00021943,2]
[346162047,1734761461271,-500.0,0.00021943,2]
[346162048,1734761461281,-500.0,0.00021943,2]
[346162049,1734761461291,-1197.08,0.00021943,2]
[346162050,1734761461301,-500.0,0.00021943,2]
[346162051,1734761461310,-1793.57,0.00021943,2]
[346162052,1734761461320,-500.0,0.00021943,2]
[346162053,1734761461330,-700.13,0.00021943,2]
[346162054,1734761461339,-1570.1,0.00021943,2]
[346162055,1734761461348,-500.0,0.00021943,2]
[346162056,1734761461358,-503.58583306,0.00021943,2]
[346162057,1734761461367,-500.0,0.00021943,2]
[346162058,1734761461377,-935.09,0.00021943,2]
[346162059,1734761461387,-2307.18,0.00021943,2]
[346162060,1734761461396,-1016.09,0.00021943,2]
[346162061,1734761461406,-500.0,0.00021943,2]
[346162062,1734761461416,-500.0,0.00021943,2]
[346162063,1734761461426,-910.97,0.00021943,2]
[346162064,1734761461435,-500.0,0.00021943,2]
[346162065,1734761461445,-613.49,0.00021943,2]
[346162066,1734761461455,-2889.83,0.00021943,2]
[346162067,1734761461465,-500.0,0.00021943,2]
[346162068,1734761461476,-500.0,0.00021943,2]
[346162069,1734761461485,-1343.78,0.00021943,2]
[346162070,1734761461495,-399.75329635,0.00021943,2]
[346162071,1734761461506,-500.0,0.00021943,2]
[346162072,1734761461522,-500.0,0.00021943,2]
[346162073,1734761461533,-4095.86,0.00021943,2]
[346162074,1734761461543,-500.0,0.00021943,2]
[346162075,1734761461553,-500.0,0.00021943,2]
[346162076,1734761461563,-500.0,0.00021943,2]
[346162077,1734761461573,-9688.5,0.00021943,2]
[346162078,1734761461583,-500.0,0.00021943,2]
[346162079,1734761461594,-500.0,0.00021943,2]
[346162080,1734761461604,-1265.61,0.00021943,2]
[346162081,1734761461613,-500.0,0.00021943,2]
[346162082,1734761461623,-2651.16,0.00021943,2]
[346162083,1734761461633,-632.73,0.00021943,2]
[346162084,1734761461642,-1107.82,0.00021943,2]
[346162085,1734761461652,-500.0,0.00021943,2]
[346162086,1734761461662,-571.4,0.00021943,2]
[346162087,1734761461672,-500.0,0.00021943,2]
[346162088,1734761461682,-500.0,0.00021943,2]
[346162089,1734761461692,-500.0,0.00021943,2]
[346162090,1734761461702,-500.0,0.00021943,2]
[346162091,1734761461712,-1996.02,0.00021943,2]
[346162092,1734761461725,-500.0,0.00021943,2]
[346162093,1734761461736,-500.0,0.00021943,2]
[346162094,1734761461746,-2547.76,0.00021943,2]
[346162095,1734761461756,-500.0,0.00021943,2]
[346162096,1734761461767,-500.0,0.00021943,2]
[346162097,1734761461777,-500.0,0.00021944,2]
[346162098,1734761461787,-1008.64,0.00021944,2]
[346162099,1734761461797,-500.0,0.00021944,2]
[346162100,1734761461810,-500.0,0.00021944,2]
[346162101,1734761461820,-646.75,0.00021944,2]
[346162102,1734761461830,-774.93,0.00021944,2]
[346162103,1734761461839,-845.55,0.00021944,2]
[346162104,1734761461850,-506.04143414,0.00021944,2]
[346162105,1734761461860,-743.47,0.00021944,2]
[346162106,1734761461869,-1000.0,0.00021944,30]
[346162107,1734761461879,-872.78,0.00021944,2]
[346162108,1734761461889,-1113.48,0.00021944,2]
[346162109,1734761461899,-615.16,0.00021944,2]
[346162110,1734761461908,-500.0,0.00021944,2]
[346162111,1734761461918,-1145.27,0.00021944,2]
[346162112,1734761461927,-579.46,0.00021944,2]
[346162113,1734761461937,-919.62,0.00021944,2]
[346162114,1734761461947,-819.76,0.00021944,2]
[346162115,1734761461956,-829.46,0.00021944,2]
[346162116,1734761461966,-500.0,0.00021944,2]
[346162117,1734761461975,-500.0,0.00021944,2]
[346162118,1734761461985,-555.99,0.00021944,2]
[346162119,1734761461995,-576.85,0.00021944,2]
[346162120,1734761462004,-500.0,0.00021944,2]
[346162121,1734761462015,-933.2,0.00021944,2]
[346162122,1734761462025,-150.0,0.00021944,2]
[346162123,1734761462035,-660.77,0.00021944,2]
[346162124,1734761462045,-588.62,0.00021944,2]
[346162125,1734761462055,-692.14,0.00021944,2]
[346162126,1734761462064,-764.01,0.00021944,2]
[346162127,1734761462074,-943.24,0.00021944,2]
[346162128,1734761462084,-1058.48,0.00021944,2]
[346162129,1734761462094,-500.0,0.00021944,2]
[346162130,1734761462104,-500.0,0.00021944,2]
[346162131,1734761462114,-500.0,0.00021944,2]
[346162132,1734761462124,-500.0,0.00021944,2]
[346162133,1734761462134,-2139.52,0.00021944,2]
[346162134,1734761462144,-1221.06,0.00021944,2]
[346162135,1734761462154,-500.0,0.00021944,2]
[346162136,1734761462163,-7875.05,0.00021944,2]
[346162137,1734761462173,-713.81,0.00021944,2]
[346162138,1734761462183,-4669.9,0.00021944,2]
[346162139,1734761462194,-836.26,0.00021944,2]
[346162140,1734761462204,-874.25,0.00021944,2]
[346162141,1734761462214,-1654.81,0.00021944,2]
[346162142,1734761462224,-1029.59,0.00021944,2]
[346162143,1734761462235,-1063.25,0.00021944,2]
[346162144,1734761462245,-500.0,0.00021944,2]
[346162145,1734761462254,-2065.93,0.00021944,2]
[346162146,1734761462266,-1203.48,0.00021944,2]
[346162147,1734761462277,-3940.92,0.00021944,2]
[346162148,1734761462287,-3079.47,0.00021944,2]
[346162149,1734761462297,-950.38,0.00021944,2]
[346162150,1734761462307,-500.0,0.00021944,2]
[346162151,1734761462317,-3631.66,0.00021944,2]
[346162152,1734761462327,-500.0,0.00021944,2]
[346162153,1734761462337,-500.0,0.00021944,2]
[346162154,1734761462347,-500.0,0.00021944,2]
[346162155,1734761462357,-1046.79,0.00021944,2]
[346162156,1734761462367,-500.0,0.00021944,2]
[346162157,1734761462376,-625.86,0.00021944,2]
[346162158,1734761462386,-654.64,0.00021944,2]
[346162159,1734761462397,-986.97,0.00021944,2]
[346162160,1734761462407,-1450.46,0.00021944,2]
[346162161,1734761462417,-500.0,0.00021944,2]
[346162162,1734761462427,-517.33,0.00021944,2]
[346162163,1734761462437,-3180.17,0.00021944,2]
[346162164,1734761462447,-500.0,0.00021944,2]
[346162165,1734761462456,-500.0,0.00021944,2]
[346162166,1734761462466,-1055.22,0.00021944,2]
[346162167,1734761462476,-572.71,0.00021944,2]
[346162168,1734761462486,-500.0,0.00021944,2]
[346162169,1734761462495,-1169.1,0.00021944,2]
[346162170,1734761462505,-3650.45,0.00021944,2]
[346162171,1734761462515,-858.8,0.00021944,2]
[346162172,1734761462526,-1443.33,0.00021944,2]
[346162173,1734761462538,-1001.36,0.00021944,2]
[346162174,1734761462548,-658.26,0.00021944,2]
[346162175,1734761462558,-755.68,0.00021944,2]
[346162176,1734761462570,-1292.58,0.00021944,2]
[346162177,1734761462580,-2276.6,0.00021944,2]
[346162178,1734761462590,-1161.48,0.00021944,2]
[346162179,1734761462601,-500.0,0.00021944,2]
[346162180,1734761462612,-1150.83,0.00021944,2]
[346162181,1734761462622,-500.0,0.00021944,2]
[346162182,1734761462633,-2254.91,0.00021944,2]
[346162183,1734761462643,-1243.88,0.00021944,2]
[346162184,1734761462654,-1861.54,0.00021944,2]
[346162185,1734761462664,-873.16,0.00021944,2]
[346162186,1734761462674,-500.0,0.00021944,2]
[346162187,1734761462684,-3904.28,0.00021944,2]